bitfinex/quotes_SOLUSD_20260202
["timestamp","ask_amount","ask_price","bid_price","bid_amount"]
[1770055663761,1.50811111,104.44,104.4,9.57853004]
[1770055664073,1.50811111,104.43,104.4,8.81753875]
[1770055664278,1.50811111,104.43,104.4,10.26112543]
[1770055665476,1.50811111,104.42,104.39,1.44358668]
[1770055665674,11.08494076,104.42,104.39,10.26112543]
[1770055665982,1.50811111,104.42,104.39,19.84055007]
[1770055666170,1.50811111,104.42,104.39,11.02301132]
[1770055666375,11.08443125,104.43,104.4,10.26112543]
[1770055667283,11.08443125,104.43,104.4,1.44358668]
[1770055667865,11.08443125,104.43,104.4,10.26112543]
[1770055668068,19.90197,104.43,104.39,1.44358668]
[1770055668367,43.84145099,104.43,104.39,10.26112543]
[1770055668578,11.08443125,104.43,104.4,1.34333388]
[1770055669163,19.90197,104.43,104.39,10.16087263]
[1770055669667,43.84145099,104.43,104.39,10.16087263]
[1770055669985,43.84145099,104.43,104.39,10.16538022]
[1770055671080,43.84145099,104.43,104.39,19.74482855]
[1770055671276,11.08443125,104.43,104.4,1.34784147]
[1770055671482,9.57632014,104.43,104.41,1.34784147]
[1770055671666,10.97702407,104.43,104.4,1.34784147]
[1770055672459,1.40070393,104.43,104.4,19.74384082]
[1770055672665,37.57416145,104.46,104.43,1.34784147]
[1770055672864,1.40070393,104.45,104.42,10.16538022]
[1770055673574,1.40070393,104.46,104.43,10.16538022]
[1770055673885,37.57200478,104.48,104.45,8.81753875]
[1770055674068,28.00070393,104.48,104.45,10.16538022]
[1770055674767,46.38945351,104.48,104.45,1.34784147]
[1770055675078,19.78945351,104.48,104.45,1.34784147]
[1770055675277,1.40070393,104.47,104.44,10.16538022]
[1770055676068,1.40070393,104.47,104.44,1.34784147]
[1770055676482,1.40070393,104.47,104.44,10.16538022]
[1770055676669,1.40070393,104.47,104.44,19.74024818]
[1770055676985,1.40070393,104.48,104.45,10.16538022]
[1770055677180,10.97199432,104.48,104.45,10.16538022]
[1770055677775,10.97199432,104.48,104.45,1.34784147]
[1770055677978,1.40070393,104.47,104.43,10.16538022]
[1770055678187,1.40070393,104.47,104.44,10.16538022]
[1770055679080,47.99282842,104.48,104.44,10.16538022]
[1770055679586,34.90001882,104.48,104.45,1.34784147]
[1770055680267,10.21824268,104.5,104.47,1.34784147]
[1770055680467,10.970237,104.5,104.47,1.34784147]
[1770055681882,10.970237,104.5,104.47,10.16538022]
[1770055682081,21.15581632,104.52,104.49,8.81753875]
[1770055682279,10.96795545,104.53,104.5,10.16538022]
[1770055682486,10.96795545,104.53,104.5,1.34784147]
[1770055682689,10.96795545,104.53,104.49,10.16538022]
[1770055683066,10.96795545,104.53,104.5,8.81753875]
[1770055683380,19.7854942,104.53,104.49,10.16538022]
[1770055683774,1.40070393,104.52,104.49,1.34784147]
[1770055684268,1.40070393,104.5,104.47,10.16538022]
[1770055684472,10.21824268,104.5,104.47,1.34784147]
[1770055684877,1.40070393,104.5,104.47,1.34784147]
[1770055685088,1.40070393,104.51,104.47,8.81753875]
[1770055685292,1.40070393,104.52,104.49,1.34784147]
[1770055685488,10.21824268,104.52,104.48,10.16538022]
[1770055685673,10.21824268,104.51,104.48,1.34784147]
[1770055686079,10.21824268,104.52,104.48,10.16538022]
[1770055686473,1.40070393,104.51,104.48,10.16538022]
[1770055686678,1.40070393,104.51,104.48,1.34784147]
[1770055687078,10.21824268,104.51,104.48,1.34784147]
[1770055687279,19.7869639,104.51,104.48,1.34784147]
[1770055688984,1.40070393,104.48,104.44,10.16538022]
[1770055689297,10.9744335,104.46,104.43,1.34784147]
[1770055689489,19.79197225,104.46,104.43,1.34784147]
[1770055689672,10.9744335,104.46,104.43,1.34784147]
[1770055689874,19.79197225,104.46,104.43,1.34784147]
[1770055690092,36.16972942,104.5,104.46,1.34784147]
[1770055690389,26.6,104.5,104.47,10.16538022]
[1770055690589,26.6,104.5,104.48,8.81753875]
[1770055690787,26.6,104.5,104.47,1.34784147]
[1770055690788,36.16943614,104.5,104.47,1.34784147]
[1770055690987,36.16943614,104.5,104.47,10.16538022]
[1770055691178,37.57014007,104.5,104.47,1.34784147]
[1770055691502,1.40070393,104.49,104.45,10.16538022]
[1770055691800,10.21824268,104.49,104.45,10.16538022]
[1770055693599,9.5712098,104.48,104.45,10.16538022]
[1770055694002,26.6,104.5,104.47,1.34784147]
[1770055694298,10.21824268,104.51,104.48,1.34784147]
[1770055694599,1.40070393,104.51,104.47,10.16538022]
[1770055694802,10.96876929,104.52,104.49,10.16538022]
[1770055694981,10.96876929,104.52,104.49,1.34784147]
[1770055695182,1.40070393,104.5,104.47,1.34784147]
[1770055695409,10.21824268,104.5,104.46,10.16538022]
[1770055695588,9.5702938,104.49,104.46,10.16538022]
[1770055695903,10.97099773,104.49,104.46,10.16538022]
[1770055697200,34.89673225,104.49,104.46,1.34784147]
[1770055697398,34.89673225,104.49,104.46,10.16538022]
[1770055697701,10.97099773,104.49,104.46,10.16538022]
[1770055698100,9.5702938,104.49,104.46,10.16538022]
[1770055698478,1.40070393,104.51,104.47,10.16538022]
[1770055698682,10.21824268,104.51,104.47,10.16538022]
[1770055698898,1.40070393,104.5,104.47,1.34784147]
[1770055699098,1.40070393,104.47,104.42,1.34784147]
[1770055699301,1.40070393,104.45,104.4,1.34784147]
[1770055699503,10.97481507,104.45,104.42,1.34784147]
[1770055699695,10.97410068,104.46,104.43,1.34784147]
[1770055699889,19.79163943,104.46,104.43,1.34784147]
[1770055700090,10.13281223,104.45,104.4,18.39564938]
[1770055700287,18.3909355,104.46,104.41,18.39490408]
[1770055700491,8.81753875,104.48,104.43,8.81753875]
[1770055700793,8.81753875,104.48,104.41,9.57736533]
[1770055700794,1.31527348,104.48,104.45,8.81753875]
[1770055700988,1.31527348,104.48,104.44,8.81753875]
[1770055701184,1.31527348,104.45,104.41,9.57736533]
[1770055701385,10.13281223,104.46,104.42,8.81753875]
[1770055701794,10.13281223,104.47,104.43,8.81753875]
[1770055701995,10.13281223,104.46,104.42,18.39412833]
[1770055702198,10.13281223,104.46,104.42,19.64658651]
[1770055702509,10.13281223,104.46,104.42,1.25245818]
[1770055702806,1.31527348,104.46,104.42,1.25245818]
[1770055703005,10.13281223,104.45,104.41,1.25245818]
[1770055703206,10.13281223,104.44,104.39,19.6456929]
[1770055703505,34.81805408,104.47,104.43,10.066658]
[1770055703740,1.31527348,104.47,104.44,10.066658]
[1770055703895,10.88744582,104.47,104.44,10.066658]
[1770055704219,10.88744582,104.47,104.42,23.9417736]
[1770055704220,19.70498457,104.47,104.42,10.82209604]
[1770055704413,1.31527348,104.45,104.42,1.24581867]
[1770055704619,10.13281223,104.46,104.43,1.24581867]
[1770055705194,10.13281223,104.46,104.42,1.242556]
[1770055705521,1.31527348,104.46,104.42,10.06009475]
[1770055706020,19.70635085,104.46,104.42,10.06009475]
[1770055706904,10.8888121,104.46,104.43,1.24401962]
[1770055707109,36.73281223,104.48,104.44,10.06155837]
[1770055707405,10.13281223,104.48,104.44,10.06155837]
[1770055707613,10.13281223,104.47,104.44,1.24401962]
[1770055708014,10.88740504,104.47,104.44,1.24401962]
[1770055708315,19.70494379,104.47,104.43,10.0622776]
[1770055708805,1.31527348,104.46,104.42,19.63868105]
[1770055709117,1.31527348,104.45,104.42,1.24473885]
[1770055709297,1.31527348,104.45,104.42,10.0622776]
[1770055709707,1.31527348,104.46,104.42,10.0622776]
[1770055710231,42.31998523,104.47,104.44,10.06369137]
[1770055710232,10.88770952,104.47,104.44,10.06369137]
[1770055710519,10.88770952,104.47,104.43,10.06369137]
[1770055711899,9.57243604,104.47,104.44,10.0643861]
[1770055712301,10.88770952,104.47,104.44,10.0643861]
[1770055712610,10.88770952,104.47,104.44,1.24684735]
[1770055713414,10.88770952,104.47,104.44,10.0643861]
[1770055715121,10.88770952,104.47,104.44,1.24684735]
[1770055717613,10.88770952,104.47,104.43,1.25085132]
[1770055717614,19.70524827,104.47,104.43,1.25085132]
[1770055717814,1.31527348,104.46,104.43,1.25085132]
[1770055718622,1.31527348,104.46,104.43,19.64415483]
[1770055718828,10.88781265,104.47,104.43,19.64415483]
[1770055719716,10.88781265,104.47,104.44,1.25212548]
[1770055720026,10.88688553,104.48,104.45,1.25275161]
[1770055720228,9.5708065,104.49,104.46,10.07029036]
[1770055720423,10.88516521,104.5,104.46,1.25275161]
[1770055720628,10.88516521,104.5,104.47,8.81753875]
[1770055721429,10.88516521,104.5,104.46,10.07029036]
[1770055721631,19.70270396,104.5,104.46,10.07029036]
[1770055724632,19.69712697,104.5,104.46,10.06471337]
[1770055726429,19.69712697,104.5,104.46,4.77753896]
[1770055726430,14.40995256,104.5,104.46,4.77753896]
[1770055726630,1.31527348,104.49,104.46,4.77753896]
[1770055727437,1.31527348,104.49,104.46,14.35047523]
[1770055727641,1.31527348,104.49,104.46,4.77753896]
[1770055728016,1.31527348,104.49,104.46,1.25275161]
[1770055728217,10.88561293,104.49,104.46,1.25275161]
[1770055728535,10.88561293,104.49,104.46,4.77753896]
[1770055729636,10.88561293,104.49,104.46,14.35049522]
[1770055729831,1.31527348,104.49,104.46,14.35049522]
[1770055730043,10.91168268,104.5,104.47,1.24161596]
[1770055731737,27.94182033,104.52,104.49,4.76640331]
[1770055732040,1.34182033,104.51,104.48,4.76640331]
[1770055732416,10.91030685,104.51,104.48,4.76640331]
[1770055732815,1.34182033,104.5,104.48,3.52478735]
[1770055733021,10.91030685,104.51,104.47,14.338322]
[1770055733223,10.91030685,104.51,104.48,4.76640331]
[1770055734437,10.91030685,104.51,104.48,14.33758734]
[1770055734935,1.34182033,104.52,104.49,4.76640331]
[1770055739144,1.34182033,104.52,104.49,14.33656724]
[1770055739645,37.50893412,104.53,104.5,4.76640331]
[1770055740948,1.34182033,104.52,104.5,1.24161596]
[1770055741123,1.34182033,104.5,104.47,14.33811135]
[1770055741325,4.86660768,104.51,104.48,1.24161596]
[1770055741525,1.34182033,104.51,104.48,1.24161596]
[1770055741723,1.34182033,104.51,104.47,14.33811135]
[1770055742133,4.86660768,104.51,104.48,1.24161596]
[1770055742547,1.34182033,104.51,104.48,1.24161596]
[1770055742749,1.34182033,104.51,104.48,4.76640331]
[1770055742939,1.34182033,104.5,104.47,14.33811135]
[1770055743629,10.91031443,104.51,104.48,1.24161596]
[1770055743831,10.90971074,104.52,104.49,1.24161596]
[1770055744031,1.34182033,104.51,104.48,14.33757285]
[1770055745035,1.34182033,104.5,104.47,1.24161596]
[1770055745234,14.43552438,104.51,104.48,1.24161596]
[1770055745435,10.91073703,104.51,104.48,1.24161596]
[1770055746146,1.34182033,104.5,104.47,3.52478735]
[1770055746345,1.34182033,104.5,104.47,4.76640331]
[1770055747047,1.34182033,104.5,104.47,14.33851189]
[1770055747252,10.91165719,104.5,104.47,4.76640331]
[1770055749448,1.34182033,104.49,104.47,1.24161596]
[1770055749753,1.34182033,104.48,104.45,4.76640331]
[1770055750648,1.34182033,104.48,104.44,13.09920376]
[1770055750835,1.34182033,104.48,104.45,14.34029329]
[1770055757766,1.34182033,104.47,104.44,14.3411551]
[1770055760665,1.34182033,104.47,104.44,10.8162844]
[1770055760847,1.34182033,104.47,104.44,14.34107175]
[1770055762753,1.34182033,104.47,104.44,14.34099168]
[1770055765363,1.34182033,104.47,104.45,1.27568822]
[1770055765572,1.34182033,104.47,104.44,14.37506394]
[1770055767667,1.35832405,104.46,104.43,14.37659891]
[1770055767862,1.35832405,104.46,104.44,1.2763951]
[1770055768049,10.93046217,104.47,104.44,1.2763951]
[1770055768252,10.93046217,104.47,104.44,10.85124376]
[1770055768455,1.35832405,104.47,104.43,14.37713788]
[1770055768663,1.35832405,104.46,104.43,14.37713788]
[1770055768959,1.35832405,104.47,104.44,14.37616124]
[1770055769855,1.35832405,104.46,104.42,1.27742527]
[1770055770054,1.35832405,104.47,104.44,14.37701656]
[1770055770256,0.04562089,104.47,104.44,14.37701656]
[1770055770851,0.04562089,104.47,104.45,4.90265829]
[1770055771051,13.09508115,104.49,104.45,4.90265829]
[1770055771282,13.09508115,104.49,104.44,14.47746223]
[1770055771569,13.09508115,104.49,104.45,1.37787094]
[1770055771768,13.09508115,104.49,104.45,4.90265829]
[1770055772171,1.35832405,104.47,104.45,4.90265829]
[1770055772882,1.35832405,104.48,104.46,1.37787094]
[1770055773052,7.26811858,104.5,104.47,4.90265829]
[1770055773376,7.26811858,104.5,104.47,1.37787094]
[1770055773866,1.35832405,104.49,104.47,1.37787094]
[1770055774670,1.35832405,104.49,104.46,14.4754332]
[1770055774970,1.35832405,104.49,104.46,14.47530543]
[1770055775267,10.9289626,104.49,104.46,4.90265829]
[1770055775570,1.35832405,104.49,104.46,14.47568867]
[1770055776471,1.35832405,104.47,104.44,10.95217669]
[1770055776668,1.35832405,104.47,104.44,1.37787094]
[1770055776975,1.35832405,104.46,104.44,1.37787094]
[1770055777774,1.35832405,104.46,104.43,13.10034628]
[1770055777972,1.35832405,104.46,104.43,14.47821722]
[1770055780675,1.35832405,104.48,104.45,1.37787094]
[1770055780977,1.35832405,104.49,104.47,3.52478735]
[1770055781563,1.35832405,104.5,104.47,4.90265829]
[1770055782263,1.35832405,104.5,104.48,3.52478735]
[1770055782465,1.35832405,104.53,104.5,1.37787094]
[1770055782664,1.35832405,104.53,104.5,4.90265829]
[1770055782880,1.35832405,104.53,104.5,3.52478735]
[1770055783466,1.35832405,104.52,104.5,3.52478735]
[1770055783798,1.35832405,104.55,104.52,1.37787094]
[1770055784079,48.83986415,104.57,104.54,4.90265829]
[1770055784379,27.95832405,104.57,104.54,4.90265829]
[1770055784680,37.52162279,104.57,104.54,3.52478735]
[1770055785369,1.35832405,104.56,104.54,3.52478735]
[1770055786070,0.2,104.58,104.56,1.37787094]
[1770055786272,0.2,104.59,104.57,4.90265829]
[1770055786470,0.2,104.61,104.58,4.89519106]
[1770055786677,1.55832405,104.61,104.58,1.37787094]
[1770055786872,1.55832405,104.61,104.58,4.89519106]
[1770055787060,1.55832405,104.61,104.59,3.51732012]
[1770055787378,1.55832405,104.62,104.6,3.51732012]
[1770055787680,11.1167706,104.62,104.59,3.51732012]
[1770055788560,1.55832405,104.62,104.6,3.51732012]
[1770055788766,0.2,104.62,104.6,3.51732012]
[1770055788963,38.05172174,104.65,104.61,3.51732012]
[1770055789268,1.26479621,104.64,104.62,3.51732012]
[1770055789665,26.6,104.65,104.63,3.51732012]
[1770055790179,7.17459074,104.66,104.63,3.51732012]
[1770055790564,1.32315015,104.64,104.6,1.20163988]
[1770055790759,1.32315015,104.64,104.61,4.71896]
[1770055790963,1.32315015,104.64,104.62,3.51732012]
[1770055791180,18.9825526,104.66,104.64,1.20099111]
[1770055791181,5.90979453,104.66,104.64,1.20099111]
[1770055791372,1.32315015,104.68,104.65,4.71831123]
[1770055791572,1.32315015,104.68,104.65,3.51732012]
[1770055792062,1.32315015,104.67,104.65,3.51732012]
[1770055792478,1.32315015,104.65,104.62,3.51732012]
[1770055792680,10.87886642,104.65,104.61,4.71766991]
[1770055792974,10.87886642,104.65,104.62,3.51732012]
[1770055793361,1.32315015,104.64,104.61,14.27641366]
[1770055793782,1.32315015,104.64,104.6,10.76682657]
[1770055794077,1.32315015,104.64,104.61,3.51732012]
[1770055794785,1.32315015,104.64,104.61,4.7308639]
[1770055796077,1.32315015,104.63,104.6,14.30359822]
[1770055796478,1.32315015,104.62,104.58,8.78803199]
[1770055796784,1.32315015,104.61,104.58,10.01446841]
[1770055796978,1.32315015,104.61,104.59,8.78803199]
[1770055797488,1.32315015,104.61,104.58,19.57631966]
[1770055798663,1.32315015,104.61,104.58,10.01446841]
[1770055799181,1.32315015,104.6,104.57,10.80781919]
[1770055799382,1.32315015,104.59,104.55,10.03325735]
[1770055799586,1.32315015,104.58,104.54,52.74323511]
[1770055800083,1.32315015,104.58,104.55,19.6040443]
[1770055800483,1.32315015,104.58,104.55,10.03937702]
[1770055801888,1.32315015,104.58,104.55,19.60409879]
[1770055802773,1.32315015,104.57,104.54,33.14473352]
[1770055802982,1.32315015,104.57,104.54,1.26337428]
[1770055803279,1.32315015,104.56,104.52,19.6244235]
[1770055803681,1.32315015,104.55,104.52,19.6244235]
[1770055803976,10.11118214,104.55,104.51,19.6312334]
[1770055804181,1.32315015,104.55,104.51,19.6312334]
[1770055804367,10.11118214,104.55,104.51,19.6312334]
[1770055804783,1.32315015,104.54,104.51,1.2751288]
[1770055805372,1.32315015,104.54,104.51,10.06316079]
[1770055805871,10.88751054,104.56,104.52,10.07464682]
[1770055806070,1.32315015,104.56,104.53,10.07464682]
[1770055806796,1.32315015,104.54,104.51,8.78803199]
[1770055807291,1.32315015,104.56,104.53,8.78803199]
[1770055807495,1.32315015,104.56,104.53,10.08029109]
[1770055807878,10.88718589,104.56,104.52,10.08029109]
[1770055808593,1.32315015,104.54,104.51,10.86627497]
[1770055808806,1.32315015,104.54,104.5,10.86685923]
[1770055809093,10.11118214,104.54,104.5,10.08587052]
[1770055809294,19.6773766,104.54,104.5,10.08587052]
[1770055809490,10.88934461,104.54,104.5,10.08587052]
[1770055809788,19.6773766,104.54,104.5,10.08587052]
[1770055810174,1.32315015,104.53,104.49,19.66665578]
[1770055810379,10.11118214,104.53,104.49,10.87862379]
[1770055810691,1.32315015,104.53,104.5,19.6661948]
[1770055810988,1.32315015,104.53,104.49,19.67206383]
[1770055811310,10.88995369,104.53,104.49,19.67206383]
[1770055811672,10.88995369,104.53,104.5,8.78803199]
[1770055812591,1.32315015,104.55,104.5,1.31952273]
[1770055812791,1.32315015,104.54,104.5,1.31952273]
[1770055812994,1.32315015,104.54,104.49,9.56983659]
[1770055812995,1.32315015,104.52,104.49,18.35786858]
[1770055813395,10.11118214,104.52,104.48,19.6781908]
[1770055813694,1.32315015,104.52,104.49,19.68298588]
[1770055815990,1.32315015,104.52,104.5,8.78803199]
[1770055816378,1.32315015,104.52,104.49,19.68298588]
[1770055816991,10.89080063,104.52,104.49,8.78803199]
[1770055817202,10.89080063,104.52,104.49,9.57026273]
[1770055817203,1.32315015,104.51,104.49,9.57026273]
[1770055817377,1.32315015,104.52,104.49,9.57026273]
[1770055818901,1.32315015,104.52,104.49,18.35829472]
[1770055819194,1.32315015,104.49,104.46,9.57260388]
[1770055819382,1.32315015,104.49,104.46,18.36063587]
[1770055819995,1.32315015,104.49,104.46,19.72063354]
[1770055820794,19.81013785,104.51,104.47,10.93664628]
[1770055821002,1.45280199,104.5,104.47,19.72467827]
[1770055821197,1.45280199,104.5,104.46,10.94240382]
[1770055821499,1.45280199,104.5,104.47,10.15757729]
[1770055822087,1.45280199,104.5,104.46,19.73512754]
[1770055822483,1.45280199,104.49,104.46,18.36089051]
[1770055822682,1.45280199,104.47,104.43,9.57520827]
[1770055823000,19.81323568,104.47,104.43,9.57520827]
[1770055823200,1.45280199,104.46,104.42,19.73857204]
[1770055823402,1.45280199,104.46,104.43,10.16690685]
[1770055823697,1.45280199,104.46,104.42,18.36433501]
[1770055823902,1.45280199,104.46,104.42,19.74320987]
[1770055824099,1.45280199,104.46,104.42,10.16690685]
[1770055824100,1.45280199,104.45,104.42,10.16690685]
[1770055824402,1.45280199,104.45,104.42,19.74350357]
[1770055824598,1.45280199,104.45,104.42,10.95547158]
[1770055824783,1.45280199,104.45,104.42,19.74350357]
[1770055825285,1.45280199,104.44,104.39,1.38799134]
[1770055825490,1.45280199,104.44,104.41,10.96559427]
[1770055825696,1.45280199,104.44,104.41,19.75362626]
[1770055825884,1.45280199,104.44,104.41,10.96559427]
[1770055826086,8.78803199,104.45,104.41,19.75362626]
[1770055826087,10.24083398,104.45,104.41,19.75362626]
[1770055826282,1.45280199,104.45,104.42,8.78803199]
[1770055826481,1.45280199,104.47,104.43,1.39247119]
[1770055826690,1.45280199,104.5,104.46,1.39247119]
[1770055826898,1.45280199,104.52,104.48,10.18493158]
[1770055827089,11.02046922,104.52,104.48,10.18493158]
[1770055827706,11.02046922,104.52,104.48,1.39689959]
[1770055828007,11.02046922,104.52,104.48,10.18493158]
[1770055828504,1.45280199,104.52,104.48,19.7560308]
[1770055828903,11.02040806,104.52,104.48,10.18493158]
[1770055829097,11.02140746,104.51,104.47,10.19363637]
[1770055829286,1.45280199,104.5,104.47,8.78803199]
[1770055829488,1.45280199,104.48,104.44,18.36280036]
[1770055829688,13.84387632,104.51,104.43,1.40560438]
[1770055829689,10.24083398,104.47,104.43,1.40560438]
[1770055830108,10.24083398,104.45,104.41,19.77099921]
[1770055830509,4.27527085,104.49,104.42,8.78803199]
[1770055830706,10.24083398,104.48,104.44,10.19374951]
[1770055831007,1.45280199,104.48,104.46,8.78803199]
[1770055831209,1.45280199,104.48,104.44,10.97978598]
[1770055831397,1.45280199,104.48,104.45,8.78803199]
[1770055831787,11.02259165,104.5,104.46,18.36101668]
[1770055831993,1.45280199,104.5,104.47,8.78803199]
[1770055832208,26.6,104.51,104.49,8.78803199]
[1770055832513,37.62138615,104.51,104.47,10.19374951]
[1770055832697,28.05280199,104.51,104.49,8.78803199]
[1770055833104,28.05280199,104.51,104.48,8.78803199]
[1770055833288,11.01973146,104.53,104.49,8.78803199]
[1770055833488,1.45280199,104.53,104.5,8.78803199]
[1770055833909,11.01957134,104.53,104.49,10.19374951]
[1770055834211,19.80760333,104.53,104.49,10.19374951]
[1770055834604,19.80760333,104.53,104.48,9.57092346]
[1770055834605,19.80760333,104.53,104.48,18.35895545]
[1770055834913,11.01947254,104.53,104.5,8.78803199]
[1770055835302,11.01947254,104.53,104.49,8.78803199]
[1770055836403,19.80750453,104.53,104.49,8.78803199]
[1770055837514,1.45280199,104.52,104.49,8.78803199]
[1770055838616,1.45280199,104.52,104.5,8.78803199]
[1770055839115,11.01947254,104.53,104.5,8.78803199]
[1770055842001,1.45280199,104.52,104.49,10.97576936]
[1770055842200,1.45280199,104.52,104.5,8.78803199]
[1770055843221,9.566205,104.54,104.51,10.19374951]
[1770055843518,1.45280199,104.53,104.5,8.78803199]
[1770055844116,1.45280199,104.51,104.47,9.57155361]
[1770055844324,1.45280199,104.5,104.47,18.3595856]
[1770055844618,4.97691507,104.52,104.47,14.50138421]
[1770055844817,4.97691507,104.52,104.48,3.52411308]
[1770055845324,4.97691507,104.52,104.47,14.50127494]
[1770055845517,4.97691507,104.52,104.48,3.52411308]
[1770055846425,1.45280199,104.51,104.47,14.50127494]
[1770055847502,1.45280199,104.51,104.48,9.57110229]
[1770055847818,1.45280199,104.51,104.48,14.50093289]
[1770055848006,1.45280199,104.51,104.48,10.97681981]
[1770055848410,1.45280199,104.52,104.49,8.80725405]
[1770055848610,1.45280199,104.52,104.48,10.97681981]
[1770055848611,1.45280199,104.52,104.48,19.78407386]
[1770055848832,1.42395609,104.51,104.48,19.78407386]
[1770055849025,10.23121014,104.51,104.47,10.9889287]
[1770055849205,10.23121014,104.51,104.47,19.79618275]
[1770055849402,1.42395609,104.51,104.47,19.79618275]
[1770055850927,10.99257307,104.51,104.47,19.79618275]
[1770055851925,9.56801999,104.52,104.49,10.26454733]
[1770055852122,34.22044787,104.53,104.49,10.26454733]
[1770055852123,19.87094383,104.53,104.49,10.26454733]
[1770055852323,1.49661485,104.52,104.49,10.26454733]
[1770055852624,1.49661485,104.52,104.49,8.80725405]
[1770055853224,11.06462774,104.52,104.49,8.80725405]
[1770055853610,11.06462774,104.52,104.48,11.02827324]
[1770055853811,11.06462774,104.52,104.48,19.83552729]
[1770055854517,11.06321298,104.54,104.5,1.45729328]
[1770055854719,11.06321298,104.54,104.51,8.80725405]
[1770055854916,1.49661485,104.54,104.51,10.26454733]
[1770055855226,1.49661485,104.54,104.51,8.80725405]
[1770055855413,11.06250856,104.54,104.51,8.80725405]
[1770055857216,37.66175679,104.55,104.52,8.80725405]
[1770055857714,11.06175679,104.55,104.52,8.80725405]
[1770055858233,1.49661485,104.55,104.52,18.37477685]
[1770055858928,1.49661485,104.55,104.52,8.80725405]
[1770055859135,1.49661485,104.54,104.5,19.83353458]
[1770055859315,11.06255934,104.54,104.5,19.83353458]
[1770055859515,1.49661485,104.53,104.5,1.45729328]
[1770055859734,1.49661485,104.53,104.5,10.26454733]
[1770055860234,11.06255934,104.54,104.51,8.80725405]
[1770055860435,11.06255934,104.54,104.5,19.83389746]
[1770055861236,1.49661485,104.53,104.5,10.26454733]
[1770055861630,11.06255934,104.54,104.5,19.83377174]
[1770055863541,11.06255934,104.54,104.5,10.26454733]
[1770055863730,11.06255934,104.54,104.51,8.80725405]
[1770055863931,11.06200384,104.55,104.52,8.80725405]
[1770055864122,1.49661485,104.54,104.52,8.80725405]
[1770055864323,1.49661485,104.53,104.5,19.83375479]
[1770055864825,1.49661485,104.53,104.51,8.80725405]
[1770055865022,1.49661485,104.53,104.49,18.37706427]
[1770055865023,10.3038689,104.53,104.49,18.37706427]
[1770055865229,1.49661485,104.52,104.49,9.56981022]
[1770055865541,1.49661485,104.52,104.49,18.37706427]
[1770055867924,1.49661485,104.52,104.49,19.83435755]
[1770055869845,19.87151437,104.52,104.49,1.45729328]
[1770055870042,1.49661485,104.5,104.47,18.37900482]
[1770055870235,1.49661485,104.5,104.47,9.57175077]
[1770055870420,1.49661485,104.5,104.47,13.09608015]
[1770055870943,1.49661485,104.5,104.46,13.09683046]
[1770055871141,1.49661485,104.47,104.44,4.98162266]
[1770055871444,5.02094423,104.48,104.44,4.98162266]
[1770055871629,1.49661485,104.48,104.45,4.98162266]
[1770055872859,11.06788958,104.48,104.45,1.45729328]
[1770055873038,1.49661485,104.48,104.45,11.03062113]
[1770055874234,6.46944174,104.47,104.45,11.03062113]
[1770055878247,6.46944174,104.47,104.45,14.55495051]
[1770055878953,6.46944174,104.47,104.45,11.03062113]
[1770055879334,6.46944174,104.47,104.45,1.45729328]
[1770055879853,6.46944174,104.47,104.45,11.03123502]
[1770055880045,6.46944174,104.47,104.45,1.45729328]
[1770055880350,4.90567138,104.47,104.46,1.50445282]
[1770055880648,4.90567138,104.47,104.45,13.09823644]
[1770055882764,6.46682265,104.47,104.45,9.57390706]
[1770055888558,6.46682265,104.47,104.44,3.55002933]
[1770055892358,6.46682265,104.47,104.45,9.57395883]
[1770055893059,4.90567138,104.47,104.45,13.12279843]
[1770055893372,4.90567138,104.47,104.45,9.59846905]
[1770055893669,4.90567138,104.47,104.45,0.02451022]
[1770055893851,4.90567138,104.47,104.44,13.1231556]
[1770055894254,6.46682265,104.47,104.44,13.1231556]
[1770055897170,9.99115203,104.47,104.44,9.574316]
[1770055897650,6.46682265,104.47,104.44,9.59818834]
[1770055897853,6.46682265,104.47,104.44,9.574316]
[1770055898046,1.56115127,104.46,104.43,33.53836371]
[1770055898252,1.56115127,104.46,104.43,37.06269309]
[1770055898556,1.56115127,104.46,104.44,9.57487552]
[1770055898873,1.56115127,104.46,104.43,9.57556716]
[1770055899475,1.56115127,104.45,104.42,9.57650351]
[1770055899667,1.56115127,104.44,104.42,9.57650351]
[1770055901957,1.56115127,104.44,104.41,27.46673138]
[1770055901958,1.56115127,104.44,104.41,9.57711259]
[1770055902156,1.56115127,104.44,104.41,13.10144197]
[1770055902764,1.56115127,104.44,104.4,0.02326326]
[1770055902968,1.56115127,104.44,104.41,3.52432938]
[1770055903168,1.56115127,104.43,104.39,0.02296912]
[1770055903467,1.56115127,104.43,104.39,3.5472985]
[1770055903963,1.56115127,104.43,104.4,3.52432938]
[1770055905379,1.56115127,104.43,104.39,0.02282458]
[1770055905560,1.56115127,104.43,104.4,3.52432938]
[1770055906473,1.56115127,104.43,104.39,0.02282458]
[1770055906674,1.56115127,104.43,104.39,3.54715396]
[1770055906869,1.56115127,104.43,104.4,3.52432938]
[1770055907274,1.56115127,104.43,104.41,3.52432938]
[1770055907469,1.56115127,104.43,104.4,3.52432938]
[1770055907676,1.4909207,104.4,104.38,0.1]
[1770055907876,5.01525008,104.4,104.38,0.1]